[Event "Titled Tuesday Blitz April 11 Early 2023"]
[White "Saiz Rodriguez, Daniel Evelio"]
[Black "Mouhamad, Joachim"]
[WhiteFideId "3523420"]
[BlackFideId "656410"]
[WhiteElo "2208"]
[BlackElo "2125"]
[Result "0-1"]
[Round "06"]
[TimeControl "180+2"]
[Date "2023.04.11"]
[WhiteClock "0:00:01"]
[BlackClock "0:00:14"]

1. e4 {[%clk 0:03:00]}  c5 {[%clk 0:02:59]} 2. Nf3 {[%clk 0:02:56]}  Nc6 {[%clk 0:02:58]} 3. Bb5 {[%clk 0:02:56]}  g6 {[%clk 0:02:58]} 4. O-O {[%clk 0:02:51]}  Bg7 {[%clk 0:02:57]} 5. Bxc6 {[%clk 0:02:49]}  dxc6 {[%clk 0:02:56]} 6. d3 {[%clk 0:02:41]}  Nf6 {[%clk 0:02:53]} 7. h3 {[%clk 0:02:37]}  Nd7 {[%clk 0:02:52]} 8. Nbd2 {[%clk 0:02:25]}  O-O {[%clk 0:02:35]} 9. Nc4 {[%clk 0:02:15]}  e5 {[%clk 0:02:29]} 10. a3 {[%clk 0:01:50]}  Qc7 {[%clk 0:02:30]} 11. Be3 {[%clk 0:01:43]}  f5 {[%clk 0:02:22]} 12. Ng5 {[%clk 0:01:19]}  Rf6 {[%clk 0:01:59]} 13. exf5 {[%clk 0:01:12]}  gxf5 {[%clk 0:01:58]} 14. f4 {[%clk 0:00:51]}  Rg6 {[%clk 0:01:58]} 15. Qh5 {[%clk 0:00:41]}  Nf8 {[%clk 0:01:44]} 16. Bxc5 {[%clk 0:00:32]}  Rh6 {[%clk 0:01:38]} 17. Qe8 {[%clk 0:00:30]}  exf4 {[%clk 0:01:11]} 18. Bd6 {[%clk 0:00:21]}  Qd7 {[%clk 0:01:08]} 19. Qxd7 {[%clk 0:00:11]}  Bxd7 {[%clk 0:01:08]} 20. Bxf4 {[%clk 0:00:11]}  Rg6 {[%clk 0:01:07]} 21. Ne5 {[%clk 0:00:09]}  Bxe5 {[%clk 0:01:05]} 22. Bxe5 {[%clk 0:00:08]}  Rxg5 {[%clk 0:01:06]} 23. Bd6 {[%clk 0:00:04]}  Re8 {[%clk 0:01:04]} 24. Rae1 {[%clk 0:00:04]}  Rxe1 {[%clk 0:00:50]} 25. Rxe1 {[%clk 0:00:05]}  Rg6 {[%clk 0:00:47]} 26. Bg3 {[%clk 0:00:02]}  Re6 {[%clk 0:00:47]} 27. Rf1 {[%clk 0:00:02]}  Re2 {[%clk 0:00:47]} 28. Rf2 {[%clk 0:00:02]}  Rxf2 {[%clk 0:00:46]} 29. Kxf2 {[%clk 0:00:02]}  Kf7 {[%clk 0:00:44]} 30. Ke3 {[%clk 0:00:02]}  Ne6 {[%clk 0:00:43]} 31. Bd6 {[%clk 0:00:03]}  b6 {[%clk 0:00:43]} 32. a4 {[%clk 0:00:02]}  c5 {[%clk 0:00:43]} 33. b3 {[%clk 0:00:02]}  h5 {[%clk 0:00:42]} 34. Bb8 {[%clk 0:00:02]}  a6 {[%clk 0:00:37]} 35. Ba7 {[%clk 0:00:03]}  b5 {[%clk 0:00:37]} 36. axb5 {[%clk 0:00:01]}  axb5 {[%clk 0:00:38]} 37. c4 {[%clk 0:00:02]}  bxc4 {[%clk 0:00:25]} 38. dxc4 {[%clk 0:00:02]}  Bc6 {[%clk 0:00:26]} 39. g3 {[%clk 0:00:03]}  Kf6 {[%clk 0:00:20]} 40. Bb8 {[%clk 0:00:02]}  Be4 {[%clk 0:00:16]} 41. Bd6 {[%clk 0:00:01]}  Bc2 {[%clk 0:00:14]} 0-1


[Site "https://www.chess.com"]

[Event "Titled Tuesday Blitz April 11 Early 2023"]
[White "Palacio,Igor Da Paz"]
[Black "Rios Escobar, Adan"]
[WhiteFideId "2121140"]
[BlackFideId "3403645"]
[WhiteElo "2126"]
[BlackElo "2462"]
[Result "1-0"]
[Round "06"]
[TimeControl "180+2"]
[Date "2023.04.11"]
[WhiteClock "0:00:03"]
[BlackClock "0:00:08"]

1. e4 {[%clk 0:03:00]}  c5 {[%clk 0:02:58]} 2. Nc3 {[%clk 0:03:00]}  d6 {[%clk 0:02:57]} 3. g3 {[%clk 0:03:00]}  g6 {[%clk 0:02:55]} 4. Bg2 {[%clk 0:03:01]}  Bg7 {[%clk 0:02:56]} 5. d3 {[%clk 0:03:01]}  Nc6 {[%clk 0:02:56]} 6. f4 {[%clk 0:03:02]}  e6 {[%clk 0:02:56]} 7. Nf3 {[%clk 0:03:02]}  Nge7 {[%clk 0:02:57]} 8. O-O {[%clk 0:03:02]}  O-O {[%clk 0:02:57]} 9. Be3 {[%clk 0:03:02]}  Rb8 {[%clk 0:02:56]} 10. Rb1 {[%clk 0:03:02]}  b5 {[%clk 0:02:56]} 11. a3 {[%clk 0:03:02]}  a5 {[%clk 0:02:55]} 12. Ne2 {[%clk 0:03:02]}  b4 {[%clk 0:02:55]} 13. axb4 {[%clk 0:03:03]}  axb4 {[%clk 0:02:56]} 14. c3 {[%clk 0:03:01]}  bxc3 {[%clk 0:02:56]} 15. bxc3 {[%clk 0:03:01]}  Ba6 {[%clk 0:02:54]} 16. Qc2 {[%clk 0:02:59]}  Qc7 {[%clk 0:02:43]} 17. Ra1 {[%clk 0:02:57]}  Rb6 {[%clk 0:02:36]} 18. Rfb1 {[%clk 0:02:57]}  Rfb8 {[%clk 0:02:35]} 19. Rxb6 {[%clk 0:02:57]}  Rxb6 {[%clk 0:02:34]} 20. Ra2 {[%clk 0:02:52]}  Qb7 {[%clk 0:02:23]} 21. Kf2 {[%clk 0:02:37]}  Rb3 {[%clk 0:02:16]} 22. Rxa6 {[%clk 0:02:29]}  Rb2 {[%clk 0:02:14]} 23. Ra8+ {[%clk 0:02:00]}  Nb8 {[%clk 0:02:13]} 24. Qa4 {[%clk 0:02:00]}  Bxc3 {[%clk 0:02:01]} 25. Ng1 {[%clk 0:01:46]}  Nc6 {[%clk 0:01:55]} 26. Bf1 {[%clk 0:01:01]}  Nd4 {[%clk 0:01:46]} 27. Qe8+ {[%clk 0:00:52]}  Kg7 {[%clk 0:01:45]} 28. Rxb8 {[%clk 0:00:44]}  Qxb8 {[%clk 0:00:26]} 29. Qxb8 {[%clk 0:00:43]}  Rxb8 {[%clk 0:00:23]} 30. Nxc3 {[%clk 0:00:42]}  Rb2+ {[%clk 0:00:24]} 31. Nge2 {[%clk 0:00:37]}  Rd2 {[%clk 0:00:24]} 32. Bxd4+ {[%clk 0:00:19]}  cxd4 {[%clk 0:00:24]} 33. Nb5 {[%clk 0:00:20]}  e5 {[%clk 0:00:20]} 34. Nxd6 {[%clk 0:00:18]}  f6 {[%clk 0:00:20]} 35. fxe5 {[%clk 0:00:17]}  fxe5 {[%clk 0:00:20]} 36. Nc4 {[%clk 0:00:17]}  Rxd3 {[%clk 0:00:20]} 37. Nxe5 {[%clk 0:00:18]}  Rd2 {[%clk 0:00:19]} 38. Ke1 {[%clk 0:00:16]}  Ra2 {[%clk 0:00:17]} 39. h4 {[%clk 0:00:15]}  Ra3 {[%clk 0:00:15]} 40. Nxd4 {[%clk 0:00:12]}  Rxg3 {[%clk 0:00:14]} 41. Ndf3 {[%clk 0:00:11]}  Kf6 {[%clk 0:00:13]} 42. Kf2 {[%clk 0:00:11]}  Rxf3+ {[%clk 0:00:03]} 43. Nxf3 {[%clk 0:00:09]}  h6 {[%clk 0:00:04]} 44. Kg3 {[%clk 0:00:10]}  g5 {[%clk 0:00:05]} 45. hxg5+ {[%clk 0:00:10]}  hxg5 {[%clk 0:00:06]} 46. Kg4 {[%clk 0:00:10]}  Ke6 {[%clk 0:00:05]} 47. Kxg5 {[%clk 0:00:10]}  Kd6 {[%clk 0:00:05]} 48. Kf5 {[%clk 0:00:10]}  Ke7 {[%clk 0:00:06]} 49. Ke5 {[%clk 0:00:11]}  Kf7 {[%clk 0:00:07]} 50. Kd6 {[%clk 0:00:11]}  Ke8 {[%clk 0:00:06]} 51. e5 {[%clk 0:00:10]}  Kf7 {[%clk 0:00:07]} 52. e6+ {[%clk 0:00:10]}  Ke8 {[%clk 0:00:07]} 53. Bd3 {[%clk 0:00:04]}  Kf8 {[%clk 0:00:08]} 54. e7+ {[%clk 0:00:04]}  Kf7 {[%clk 0:00:08]} 55. Bg6+ {[%clk 0:00:02]}  Kf6 {[%clk 0:00:07]} 56. e8=Q {[%clk 0:00:03]}  Kg7 {[%clk 0:00:07]} 57. Qf7+ {[%clk 0:00:03]}  Kh8 {[%clk 0:00:08]} 58. Qh7# {[%clk 0:00:03]} 1-0


[Site "https://www.chess.com"]

[Event "Titled Tuesday Blitz April 11 Early 2023"]
[White "Jimenez Jimenez, Leandro"]
[Black "Dylag, Emilia"]
[WhiteFideId "6415253"]
[BlackFideId "21805172"]
[WhiteElo "2263"]
[BlackElo "1878"]
[Result "1-0"]
[Round "06"]
[TimeControl "180+2"]
[Date "2023.04.11"]
[WhiteClock "0:02:20"]
[BlackClock "0:01:50"]

1. d4 {[%clk 0:02:59]}  Nf6 {[%clk 0:02:53]} 2. c4 {[%clk 0:03:00]}  e6 {[%clk 0:02:49]} 3. g3 {[%clk 0:03:00]}  d5 {[%clk 0:02:48]} 4. Bg2 {[%clk 0:02:59]}  Be7 {[%clk 0:02:47]} 5. Nf3 {[%clk 0:02:59]}  O-O {[%clk 0:02:47]} 6. O-O {[%clk 0:02:59]}  dxc4 {[%clk 0:02:47]} 7. Qc2 {[%clk 0:02:56]}  c5 {[%clk 0:02:41]} 8. dxc5 {[%clk 0:02:53]}  Bxc5 {[%clk 0:02:36]} 9. Qxc4 {[%clk 0:02:48]}  Qe7 {[%clk 0:02:34]} 10. Bg5 {[%clk 0:02:45]}  Bb6 {[%clk 0:02:32]} 11. Rc1 {[%clk 0:02:41]}  Nc6 {[%clk 0:02:31]} 12. Nc3 {[%clk 0:02:36]}  h6 {[%clk 0:02:30]} 13. Bh4 {[%clk 0:02:33]}  Na5 {[%clk 0:02:05]} 14. Qf4 {[%clk 0:02:24]}  Bc7 {[%clk 0:01:55]} 15. Bxf6 {[%clk 0:02:23]}  gxf6 {[%clk 0:01:53]} 16. Qxh6 {[%clk 0:02:22]}  Rd8 {[%clk 0:01:50]} 17. Ne4 {[%clk 0:02:20]} 1-0


[Site "https://www.chess.com"]

[Event "Titled Tuesday Blitz April 11 Early 2023"]
[White "Zacurdajev, Dmitry"]
[Black "Semenova, Alina"]
[WhiteFideId "4196309"]
[BlackFideId "24113875"]
[WhiteElo "2189"]
[BlackElo "1833"]
[Result "1-0"]
[Round "06"]
[TimeControl "180+2"]
[Date "2023.04.11"]
[WhiteClock "0:02:50"]
[BlackClock "0:02:07"]

1. d4 {[%clk 0:03:00]}  d6 {[%clk 0:03:00]} 2. Nf3 {[%clk 0:02:56]}  Nf6 {[%clk 0:02:59]} 3. c4 {[%clk 0:02:56]}  g6 {[%clk 0:03:00]} 4. Nc3 {[%clk 0:02:56]}  Bg7 {[%clk 0:03:00]} 5. e4 {[%clk 0:02:56]}  O-O {[%clk 0:03:01]} 6. Be2 {[%clk 0:02:57]}  e5 {[%clk 0:03:00]} 7. O-O {[%clk 0:02:57]}  Nc6 {[%clk 0:03:00]} 8. d5 {[%clk 0:02:58]}  Ne7 {[%clk 0:03:00]} 9. Ne1 {[%clk 0:02:58]}  Nd7 {[%clk 0:02:36]} 10. Be3 {[%clk 0:02:57]}  f5 {[%clk 0:02:36]} 11. f3 {[%clk 0:02:57]}  f4 {[%clk 0:02:35]} 12. Bf2 {[%clk 0:02:57]}  g5 {[%clk 0:02:36]} 13. b4 {[%clk 0:02:57]}  a5 {[%clk 0:02:36]} 14. a3 {[%clk 0:02:56]}  Ng6 {[%clk 0:02:25]} 15. c5 {[%clk 0:02:55]}  Nf6 {[%clk 0:02:17]} 16. cxd6 {[%clk 0:02:50]}  cxd6 {[%clk 0:02:17]} 17. bxa5 {[%clk 0:02:51]}  Rxa5 {[%clk 0:02:10]} 18. Qb3 {[%clk 0:02:51]}  Rf7 {[%clk 0:02:07]} 19. Bb6 {[%clk 0:02:50]} 1-0


[Site "https://www.chess.com"]

[Event "Titled Tuesday Blitz April 11 Early 2023"]
[White "Manukyan, Sargis A."]
[Black "Aung Thant Zin"]
[WhiteFideId "13303970"]
[BlackFideId "13000063"]
[WhiteElo "2187"]
[BlackElo "2278"]
[Result "1-0"]
[Round "06"]
[TimeControl "180+2"]
[Date "2023.04.11"]
[WhiteClock "0:01:42"]
[BlackClock "0:00:48"]

1. d4 {[%clk 0:03:00]}  Nf6 {[%clk 0:02:59]} 2. c4 {[%clk 0:03:01]}  e6 {[%clk 0:02:59]} 3. Nc3 {[%clk 0:03:01]}  Bb4 {[%clk 0:02:59]} 4. a3 {[%clk 0:03:01]}  Bxc3+ {[%clk 0:02:59]} 5. bxc3 {[%clk 0:03:02]}  c5 {[%clk 0:02:55]} 6. e3 {[%clk 0:03:03]}  O-O {[%clk 0:02:52]} 7. Bd3 {[%clk 0:03:03]}  Nc6 {[%clk 0:02:52]} 8. Ne2 {[%clk 0:03:04]}  b6 {[%clk 0:02:52]} 9. O-O {[%clk 0:03:04]}  d6 {[%clk 0:02:51]} 10. e4 {[%clk 0:03:04]}  h6 {[%clk 0:02:50]} 11. f4 {[%clk 0:03:04]}  Ba6 {[%clk 0:02:39]} 12. f5 {[%clk 0:02:57]}  e5 {[%clk 0:02:33]} 13. d5 {[%clk 0:02:57]}  Na5 {[%clk 0:02:33]} 14. h3 {[%clk 0:02:48]}  Bxc4 {[%clk 0:02:30]} 15. Bxc4 {[%clk 0:02:47]}  Nxc4 {[%clk 0:02:30]} 16. Qd3 {[%clk 0:02:48]}  b5 {[%clk 0:02:26]} 17. g4 {[%clk 0:02:48]}  Nh7 {[%clk 0:02:24]} 18. Ng3 {[%clk 0:02:39]}  f6 {[%clk 0:02:22]} 19. Nh5 {[%clk 0:02:39]}  Rf7 {[%clk 0:02:18]} 20. Ra2 {[%clk 0:02:39]}  a6 {[%clk 0:02:15]} 21. Rg2 {[%clk 0:02:39]}  Qe8 {[%clk 0:01:53]} 22. h4 {[%clk 0:02:39]}  Rb7 {[%clk 0:01:49]} 23. Rf3 {[%clk 0:02:37]}  Rab8 {[%clk 0:01:42]} 24. Rfg3 {[%clk 0:02:37]}  a5 {[%clk 0:01:38]} 25. Qd1 {[%clk 0:02:23]}  b4 {[%clk 0:01:35]} 26. g5 {[%clk 0:02:19]}  fxg5 {[%clk 0:01:32]} 27. hxg5 {[%clk 0:02:19]}  hxg5 {[%clk 0:01:32]} 28. Bxg5 {[%clk 0:02:18]}  bxc3 {[%clk 0:01:22]} 29. Bf6 {[%clk 0:01:50]}  Rb1 {[%clk 0:00:52]} 30. Rxg7+ {[%clk 0:01:41]}  Kh8 {[%clk 0:00:48]} 31. Rg8# {[%clk 0:01:42]} 1-0


[Site "https://www.chess.com"]

[Event "Titled Tuesday Blitz April 11 Early 2023"]
[White "Turzo, Attila"]
[Black "Jarocka, Liwia"]
[WhiteFideId "704954"]
[BlackFideId "21807558"]
[WhiteElo "2488"]
[BlackElo "2013"]
[Result "1-0"]
[Round "06"]
[TimeControl "180+2"]
[Date "2023.04.11"]
[WhiteClock "0:00:46"]
[BlackClock "0:00:06"]

1. e4 {[%clk 0:03:00]}  d6 {[%clk 0:02:59]} 2. d4 {[%clk 0:03:00]}  Nf6 {[%clk 0:02:57]} 3. Nc3 {[%clk 0:03:01]}  g6 {[%clk 0:02:53]} 4. Nf3 {[%clk 0:03:01]}  Bg7 {[%clk 0:02:50]} 5. h3 {[%clk 0:02:59]}  O-O {[%clk 0:02:47]} 6. Be2 {[%clk 0:03:00]}  e5 {[%clk 0:02:44]} 7. dxe5 {[%clk 0:02:55]}  dxe5 {[%clk 0:02:45]} 8. Qxd8 {[%clk 0:02:52]}  Rxd8 {[%clk 0:02:44]} 9. O-O {[%clk 0:02:47]}  Nbd7 {[%clk 0:02:36]} 10. Be3 {[%clk 0:02:42]}  c6 {[%clk 0:02:36]} 11. a4 {[%clk 0:02:42]}  Re8 {[%clk 0:02:32]} 12. a5 {[%clk 0:02:41]}  h6 {[%clk 0:02:24]} 13. Nd2 {[%clk 0:02:35]}  Nf8 {[%clk 0:02:22]} 14. Nc4 {[%clk 0:02:33]}  Be6 {[%clk 0:02:04]} 15. Rfd1 {[%clk 0:02:26]}  Bxc4 {[%clk 0:02:03]} 16. Bxc4 {[%clk 0:02:25]}  Ne6 {[%clk 0:02:01]} 17. f3 {[%clk 0:02:18]}  Bf8 {[%clk 0:02:01]} 18. Na4 {[%clk 0:02:17]}  a6 {[%clk 0:01:44]} 19. c3 {[%clk 0:02:17]}  Rad8 {[%clk 0:01:32]} 20. b4 {[%clk 0:02:16]}  Nc7 {[%clk 0:01:23]} 21. Kf2 {[%clk 0:01:56]}  Nb5 {[%clk 0:01:20]} 22. Ke2 {[%clk 0:01:51]}  Kg7 {[%clk 0:01:11]} 23. Rxd8 {[%clk 0:01:49]}  Rxd8 {[%clk 0:01:12]} 24. Rd1 {[%clk 0:01:50]}  Rxd1 {[%clk 0:01:10]} 25. Kxd1 {[%clk 0:01:51]}  Nd7 {[%clk 0:01:09]} 26. Kc2 {[%clk 0:01:46]}  f5 {[%clk 0:00:59]} 27. exf5 {[%clk 0:01:44]}  gxf5 {[%clk 0:00:58]} 28. Be6 {[%clk 0:01:44]}  Nf6 {[%clk 0:00:50]} 29. Bxf5 {[%clk 0:01:44]}  Nd5 {[%clk 0:00:45]} 30. Bd2 {[%clk 0:01:36]}  Nf4 {[%clk 0:00:45]} 31. Nc5 {[%clk 0:01:17]}  Bxc5 {[%clk 0:00:40]} 32. bxc5 {[%clk 0:01:18]}  Nxg2 {[%clk 0:00:38]} 33. Bc8 {[%clk 0:01:18]}  Nc7 {[%clk 0:00:25]} 34. Bxb7 {[%clk 0:01:16]}  Kf6 {[%clk 0:00:19]} 35. Bxc6 {[%clk 0:01:16]}  h5 {[%clk 0:00:20]} 36. Kd3 {[%clk 0:01:10]}  Ke6 {[%clk 0:00:19]} 37. c4 {[%clk 0:01:06]}  Nh4 {[%clk 0:00:13]} 38. Bg5 {[%clk 0:01:00]}  Nf5 {[%clk 0:00:13]} 39. Be4 {[%clk 0:01:00]}  Ng7 {[%clk 0:00:13]} 40. Bg6 {[%clk 0:00:56]}  Na8 {[%clk 0:00:10]} 41. Bd8 {[%clk 0:00:54]}  Kd7 {[%clk 0:00:08]} 42. Bb6 {[%clk 0:00:54]}  Ne6 {[%clk 0:00:06]} 43. Be4 {[%clk 0:00:49]}  Nf4+ {[%clk 0:00:05]} 44. Ke3 {[%clk 0:00:48]}  Nxb6 {[%clk 0:00:05]} 45. cxb6 {[%clk 0:00:48]}  Nxh3 {[%clk 0:00:06]} 46. c5 {[%clk 0:00:46]}  Ng5 {[%clk 0:00:06]} 47. c6+ {[%clk 0:00:47]}  Kc8 {[%clk 0:00:06]} 48. Bf5+ {[%clk 0:00:46]} 1-0


[Site "https://www.chess.com"]

[Event "Titled Tuesday Blitz April 11 Early 2023"]
[White "Andrews, Todd"]
[Black "Mazurkiewicz, Michal"]
[WhiteFideId "2012456"]
[BlackFideId "1124943"]
[WhiteElo "2333"]
[BlackElo "2054"]
[Result "1-0"]
[Round "06"]
[TimeControl "180+2"]
[Date "2023.04.11"]
[WhiteClock "0:00:43"]
[BlackClock "0:00:04"]

1. e4 {[%clk 0:03:00]}  d6 {[%clk 0:02:59]} 2. d4 {[%clk 0:03:00]}  Nf6 {[%clk 0:03:00]} 3. Nc3 {[%clk 0:03:00]}  c6 {[%clk 0:03:00]} 4. Bg5 {[%clk 0:02:59]}  Nbd7 {[%clk 0:03:00]} 5. Qd2 {[%clk 0:02:58]}  e5 {[%clk 0:03:00]} 6. O-O-O {[%clk 0:02:54]}  b5 {[%clk 0:02:59]} 7. f3 {[%clk 0:02:52]}  Be7 {[%clk 0:02:56]} 8. d5 {[%clk 0:02:47]}  cxd5 {[%clk 0:02:43]} 9. Bxf6 {[%clk 0:02:41]}  Nxf6 {[%clk 0:02:37]} 10. Bxb5+ {[%clk 0:02:41]}  Bd7 {[%clk 0:02:31]} 11. Bxd7+ {[%clk 0:02:36]}  Qxd7 {[%clk 0:02:31]} 12. exd5 {[%clk 0:02:37]}  O-O {[%clk 0:02:29]} 13. Nge2 {[%clk 0:02:31]}  Rfc8 {[%clk 0:02:23]} 14. Kb1 {[%clk 0:02:30]}  Rab8 {[%clk 0:02:23]} 15. b3 {[%clk 0:02:23]}  Rc5 {[%clk 0:02:16]} 16. g4 {[%clk 0:02:14]}  Rbc8 {[%clk 0:02:13]} 17. g5 {[%clk 0:02:14]}  Ne8 {[%clk 0:01:57]} 18. Rc1 {[%clk 0:02:14]}  Nc7 {[%clk 0:01:52]} 19. h4 {[%clk 0:02:07]}  a5 {[%clk 0:00:33]} 20. h5 {[%clk 0:01:47]}  Na6 {[%clk 0:00:22]} 21. Ne4 {[%clk 0:01:44]}  R5c7 {[%clk 0:00:20]} 22. g6 {[%clk 0:01:37]}  fxg6 {[%clk 0:00:18]} 23. h6 {[%clk 0:01:31]}  Nc5 {[%clk 0:00:11]} 24. hxg7 {[%clk 0:01:25]}  Nxe4 {[%clk 0:00:09]} 25. fxe4 {[%clk 0:01:22]}  Bf6 {[%clk 0:00:09]} 26. c4 {[%clk 0:00:56]}  a4 {[%clk 0:00:08]} 27. Rcg1 {[%clk 0:00:55]}  axb3 {[%clk 0:00:08]} 28. axb3 {[%clk 0:00:56]}  Bxg7 {[%clk 0:00:08]} 29. Nc3 {[%clk 0:00:49]}  Rb7 {[%clk 0:00:08]} 30. Kc2 {[%clk 0:00:49]}  Qc7 {[%clk 0:00:06]} 31. Qh2 {[%clk 0:00:46]}  Bh8 {[%clk 0:00:04]} 32. Rxg6+ {[%clk 0:00:43]} 1-0


[Site "https://www.chess.com"]

[Event "Titled Tuesday Blitz April 11 Early 2023"]
[White "Krzywda, Andrzej"]
[Black "a-z30"]
[WhiteFideId "1114565"]
[WhiteElo "2155"]
[BlackElo "2312"]
[Result "1/2-1/2"]
[Round "06"]
[TimeControl "180+2"]
[Date "2023.04.11"]
[WhiteClock "0:00:03"]
[BlackClock "0:00:03"]

1. e4 {[%clk 0:02:57]}  d6 {[%clk 0:03:00]} 2. d4 {[%clk 0:02:57]}  Nf6 {[%clk 0:03:00]} 3. Nc3 {[%clk 0:02:57]}  g6 {[%clk 0:03:01]} 4. Be3 {[%clk 0:02:55]}  Bg7 {[%clk 0:03:02]} 5. Qd2 {[%clk 0:02:55]}  O-O {[%clk 0:03:03]} 6. h3 {[%clk 0:02:53]}  e5 {[%clk 0:03:01]} 7. dxe5 {[%clk 0:02:49]}  dxe5 {[%clk 0:03:00]} 8. Qxd8 {[%clk 0:02:50]}  Rxd8 {[%clk 0:03:00]} 9. Nf3 {[%clk 0:02:50]}  Ne8 {[%clk 0:02:52]} 10. Bc4 {[%clk 0:02:47]}  Nd6 {[%clk 0:02:50]} 11. Bb3 {[%clk 0:02:47]}  Nc6 {[%clk 0:02:48]} 12. O-O-O {[%clk 0:02:44]}  Na5 {[%clk 0:01:52]} 13. Nb5 {[%clk 0:02:25]}  Nxb3+ {[%clk 0:01:48]} 14. axb3 {[%clk 0:02:25]}  Rd7 {[%clk 0:01:29]} 15. Nxc7 {[%clk 0:02:08]}  Rxc7 {[%clk 0:01:26]} 16. Rxd6 {[%clk 0:02:08]}  Be6 {[%clk 0:01:26]} 17. Rhd1 {[%clk 0:02:01]}  h6 {[%clk 0:01:09]} 18. Kb1 {[%clk 0:01:49]}  Kh7 {[%clk 0:01:05]} 19. Rd8 {[%clk 0:01:37]}  Rxd8 {[%clk 0:01:04]} 20. Rxd8 {[%clk 0:01:38]}  b6 {[%clk 0:00:58]} 21. Nd2 {[%clk 0:01:30]}  f5 {[%clk 0:00:56]} 22. f3 {[%clk 0:01:25]}  Bf6 {[%clk 0:00:48]} 23. Rd6 {[%clk 0:01:23]}  Re7 {[%clk 0:00:44]} 24. exf5 {[%clk 0:01:14]}  gxf5 {[%clk 0:00:43]} 25. g4 {[%clk 0:01:15]}  Kg6 {[%clk 0:00:32]} 26. gxf5+ {[%clk 0:01:00]}  Kxf5 {[%clk 0:00:33]} 27. Ne4 {[%clk 0:00:59]}  Bg5 {[%clk 0:00:27]} 28. Ng3+ {[%clk 0:00:50]}  Kg6 {[%clk 0:00:26]} 29. Bf2 {[%clk 0:00:37]}  Bh4 {[%clk 0:00:23]} 30. Ne4 {[%clk 0:00:32]}  Bxf2 {[%clk 0:00:22]} 31. Nxf2 {[%clk 0:00:33]}  Kf5 {[%clk 0:00:21]} 32. Nd3 {[%clk 0:00:26]}  Rg7 {[%clk 0:00:15]} 33. Kc1 {[%clk 0:00:21]}  Rg3 {[%clk 0:00:14]} 34. Rd8 {[%clk 0:00:12]}  Rxf3 {[%clk 0:00:11]} 35. Rf8+ {[%clk 0:00:11]}  Ke4 {[%clk 0:00:11]} 36. Re8 {[%clk 0:00:06]}  Bxh3 {[%clk 0:00:08]} 37. Rxe5+ {[%clk 0:00:04]}  Kd4 {[%clk 0:00:08]} 38. Rh5 {[%clk 0:00:04]}  Bf5 {[%clk 0:00:07]} 39. Ne1 {[%clk 0:00:02]}  Rf2 {[%clk 0:00:06]} 40. Rxh6 {[%clk 0:00:03]}  Be4 {[%clk 0:00:04]} 41. Rh4 {[%clk 0:00:03]}  Ke5 {[%clk 0:00:03]} 42. Rh3 {[%clk 0:00:02]}  a5 {[%clk 0:00:03]} 43. Rc3 {[%clk 0:00:02]}  b5 {[%clk 0:00:03]} 44. Rc8 {[%clk 0:00:03]}  Kd4 {[%clk 0:00:04]} 45. Rd8+ {[%clk 0:00:02]}  Ke3 {[%clk 0:00:02]} 46. Re8 {[%clk 0:00:03]}  Re2 {[%clk 0:00:03]} 47. Kd1 {[%clk 0:00:03]}  Rd2+ {[%clk 0:00:03]} 48. Kc1 {[%clk 0:00:03]}  Rh2 {[%clk 0:00:03]} 49. Kd1 {[%clk 0:00:03]}  b4 {[%clk 0:00:02]} 50. Re7 {[%clk 0:00:03]}  Kf4 {[%clk 0:00:03]} 51. Rf7+ {[%clk 0:00:03]}  Ke3 {[%clk 0:00:03]} 52. Re7 {[%clk 0:00:03]}  Kf4 {[%clk 0:00:03]} 53. Rf7+ {[%clk 0:00:03]}  Ke3 {[%clk 0:00:03]} 54. Re7 {[%clk 0:00:03]} 1/2-1/2


[Site "https://www.chess.com"]

[Event "Titled Tuesday Blitz April 11 Early 2023"]
[White "Womacka, Mathias"]
[Black "Eggleston, Thomas A"]
[WhiteFideId "4611390"]
[BlackFideId "412139"]
[WhiteElo "2377"]
[BlackElo "2155"]
[Result "1-0"]
[Round "06"]
[TimeControl "180+2"]
[Date "2023.04.11"]
[WhiteClock "0:00:10"]
[BlackClock "0:00:09"]

1. e4 {[%clk 0:03:00]}  e6 {[%clk 0:02:56]} 2. d4 {[%clk 0:03:00]}  d5 {[%clk 0:02:55]} 3. Nd2 {[%clk 0:03:00]}  c5 {[%clk 0:02:54]} 4. exd5 {[%clk 0:03:00]}  Qxd5 {[%clk 0:02:53]} 5. Ngf3 {[%clk 0:03:00]}  cxd4 {[%clk 0:02:52]} 6. Bc4 {[%clk 0:03:01]}  Qd6 {[%clk 0:02:52]} 7. O-O {[%clk 0:03:01]}  Nf6 {[%clk 0:02:52]} 8. Nb3 {[%clk 0:03:01]}  Nc6 {[%clk 0:02:52]} 9. Nbxd4 {[%clk 0:03:02]}  Nxd4 {[%clk 0:02:52]} 10. Nxd4 {[%clk 0:03:02]}  Be7 {[%clk 0:02:52]} 11. c3 {[%clk 0:02:59]}  O-O {[%clk 0:02:47]} 12. Qf3 {[%clk 0:02:49]}  Qc7 {[%clk 0:02:47]} 13. Bb3 {[%clk 0:02:38]}  Bd7 {[%clk 0:02:47]} 14. Re1 {[%clk 0:02:34]}  a5 {[%clk 0:02:40]} 15. Bg5 {[%clk 0:02:09]}  a4 {[%clk 0:02:30]} 16. Bc2 {[%clk 0:02:08]}  a3 {[%clk 0:02:24]} 17. b3 {[%clk 0:02:05]}  Nd5 {[%clk 0:02:11]} 18. Bxe7 {[%clk 0:01:25]}  Nxe7 {[%clk 0:02:12]} 19. Be4 {[%clk 0:01:20]}  Ra7 {[%clk 0:02:03]} 20. Rad1 {[%clk 0:01:19]}  e5 {[%clk 0:01:54]} 21. Nc2 {[%clk 0:00:57]}  f5 {[%clk 0:01:50]} 22. Bd5+ {[%clk 0:00:57]}  Kh8 {[%clk 0:01:50]} 23. Qe3 {[%clk 0:00:39]}  Ra5 {[%clk 0:01:43]} 24. Qxe5 {[%clk 0:00:29]}  Qxe5 {[%clk 0:01:15]} 25. Rxe5 {[%clk 0:00:30]}  Ng6 {[%clk 0:01:14]} 26. Ree1 {[%clk 0:00:26]}  Bc8 {[%clk 0:01:05]} 27. g3 {[%clk 0:00:22]}  f4 {[%clk 0:01:03]} 28. Be6 {[%clk 0:00:20]}  Ne5 {[%clk 0:01:00]} 29. Nd4 {[%clk 0:00:16]}  Bxe6 {[%clk 0:00:57]} 30. Nxe6 {[%clk 0:00:15]}  Nf3+ {[%clk 0:00:56]} 31. Kh1 {[%clk 0:00:14]}  Re8 {[%clk 0:00:39]} 32. Re4 {[%clk 0:00:15]}  g5 {[%clk 0:00:24]} 33. Kg2 {[%clk 0:00:13]}  g4 {[%clk 0:00:20]} 34. gxf4 {[%clk 0:00:12]}  Nh4+ {[%clk 0:00:18]} 35. Kg3 {[%clk 0:00:11]}  Nf5+ {[%clk 0:00:16]} 36. Kxg4 {[%clk 0:00:11]}  Rg8+ {[%clk 0:00:14]} 37. Kf3 {[%clk 0:00:11]}  Nh4+ {[%clk 0:00:14]} 38. Ke2 {[%clk 0:00:11]}  Nf5 {[%clk 0:00:10]} 39. Ng5 {[%clk 0:00:11]}  h6 {[%clk 0:00:10]} 40. Nf3 {[%clk 0:00:11]}  Kh7 {[%clk 0:00:09]} 41. Re5 {[%clk 0:00:11]}  Kg6 {[%clk 0:00:09]} 42. Rxa5 {[%clk 0:00:10]} 1-0


[Site "https://www.chess.com"]